bitfinex/quotes_BTCUSD_20251113
["timestamp","ask_amount","ask_price","bid_price","bid_amount"]
[1763043995018,0.5161962,102500.0,102480.0,0.27324027]
[1763043995182,0.53441857,102500.0,102480.0,0.27324027]
[1763043995598,0.19514098,102490.0,102480.0,0.27324027]
[1763043995793,0.8391962,102500.0,102490.0,0.23776098]
[1763043996092,0.85741618,102500.0,102490.0,0.23776098]
[1763043996296,0.85741618,102500.0,102490.0,0.04800025]
[1763043996554,0.85741618,102500.0,102490.0,0.02410025]
[1763043997101,0.85741618,102500.0,102490.0,0.02610025]
[1763043997305,0.85741618,102500.0,102490.0,0.02172]
[1763043997504,0.85741618,102500.0,102490.0,0.02710025]
[1763043997706,0.85741618,102500.0,102490.0,0.00838025]
[1763043998331,0.85741618,102500.0,102490.0,0.20352123]
[1763043998917,0.85741618,102500.0,102490.0,0.19814098]
[1763043999077,0.85741618,102500.0,102490.0,0.20352123]
[1763043999634,0.85741618,102500.0,102490.0,0.00838025]
[1763044000737,0.57866193,102500.0,102490.0,0.00838025]
[1763044000952,1.06918149,102500.0,102490.0,0.00838025]
[1763044001660,0.57866193,102500.0,102490.0,0.00838025]
[1763044001879,1.31444127,102500.0,102490.0,0.00838025]
[1763044002111,1.35786001,102500.0,102490.0,0.00838025]
[1763044002345,2.09363935,102500.0,102490.0,0.003]
[1763044002767,2.09363935,102500.0,102490.0,0.001]
[1763044003128,0.19517907,102470.0,102460.0,0.05749]
[1763044003332,0.68569863,102470.0,102460.0,0.05762662]
[1763044003613,0.68569863,102470.0,102460.0,0.27672474]
[1763044003803,0.68569863,102470.0,102460.0,0.00013662]
[1763044004564,0.68569863,102470.0,102460.0,0.00551687]
[1763044004998,0.47405136,102470.0,102460.0,0.20371499]
[1763044005178,0.47405136,102470.0,102460.0,0.00851687]
[1763044005387,0.47405136,102470.0,102460.0,0.20771499]
[1763044005612,0.47405136,102470.0,102460.0,0.01251687]
[1763044006120,0.47405136,102470.0,102460.0,0.00851687]
[1763044006296,0.47405136,102470.0,102460.0,0.20071499]
[1763044006499,0.47405136,102470.0,102460.0,0.20271499]
[1763044006688,0.47405136,102470.0,102460.0,0.20371499]
[1763044006883,0.49224199,102470.0,102460.0,0.00851687]
[1763044007153,0.49224199,102470.0,102460.0,0.00313662]
[1763044007359,0.49224199,102470.0,102460.0,0.00851687]
[1763044008319,0.49224199,102470.0,102460.0,0.20371499]
[1763044008589,0.49224199,102470.0,102460.0,0.22243499]
[1763044008718,0.47405136,102470.0,102460.0,0.02723687]
[1763044008928,0.49223756,102470.0,102460.0,0.22243499]
[1763044009125,0.29705849,102470.0,102460.0,0.22243499]
[1763044009400,0.49223756,102470.0,102460.0,0.22243499]
[1763044009533,0.47405136,102470.0,102460.0,0.02723687]
[1763044010143,0.49223274,102470.0,102460.0,0.00851687]
[1763044010734,0.21336045,102470.0,102460.0,0.02723687]
[1763044011032,0.49223274,102470.0,102460.0,0.24633499]
[1763044012273,0.29705367,102470.0,102460.0,0.24633499]
[1763044012498,0.49223274,102470.0,102460.0,0.24633499]
[1763044013150,0.21336045,102470.0,102460.0,0.24633499]
[1763044013375,0.49223274,102470.0,102460.0,0.05113687]
[1763044014252,0.49223274,102470.0,102460.0,0.12059327]
[1763044014507,0.49223274,102470.0,102460.0,0.08990687]
[1763044014722,0.49223274,102470.0,102460.0,0.05113687]
[1763044014951,0.49223274,102470.0,102460.0,0.02723687]
[1763044017262,0.49223274,102470.0,102460.0,0.00313662]
[1763044017474,0.53565148,102470.0,102460.0,0.00313662]
[1763044017684,0.53565148,102470.0,102460.0,0.00851687]
[1763044018989,0.53565148,102470.0,102460.0,0.24633499]
[1763044019453,0.53565148,102470.0,102460.0,0.05113687]
[1763044019732,0.53565148,102470.0,102460.0,0.24633499]
[1763044020184,0.49223274,102470.0,102460.0,0.05113687]
[1763044020390,0.49223274,102470.0,102460.0,0.08654687]
[1763044020533,0.21336045,102470.0,102460.0,0.28174499]
[1763044020971,0.49223274,102470.0,102460.0,0.28174499]
[1763044022208,0.21336045,102470.0,102460.0,0.28174499]
[1763044022853,0.01818138,102470.0,102460.0,0.28174499]
[1763044023069,0.21336045,102470.0,102460.0,0.28174499]
[1763044023279,0.19517907,102470.0,102460.0,0.28174499]
[1763044025041,0.19516003,102480.0,102470.0,0.20055932]
[1763044025249,0.45866254,102480.0,102470.0,0.02299025]
[1763044025457,0.70394435,102480.0,102470.0,0.02299025]
[1763044025674,0.70394435,102480.0,102470.0,0.21816932]
[1763044025891,0.19516003,102480.0,102470.0,0.27545932]
[1763044026108,0.59009891,102490.0,102470.0,0.27545932]
[1763044026321,0.24528181,102480.0,102470.0,0.27545932]
[1763044026507,0.44044184,102480.0,102470.0,0.27545932]
[1763044026776,0.13988573,102490.0,102480.0,0.20054028]
[1763044026994,0.01822932,102490.0,102480.0,0.31845028]
[1763044027681,0.72800557,102500.0,102490.0,0.19514098]
[1763044027893,0.78965728,102500.0,102490.0,0.02368025]
[1763044028879,0.78965728,102500.0,102490.0,0.00538025]
[1763044029297,1.03493909,102500.0,102490.0,0.00538025]
[1763044030406,0.29909366,102500.0,102490.0,0.00538025]
[1763044030574,0.78965728,102500.0,102490.0,0.00538025]
[1763044031932,1.03493909,102500.0,102490.0,0.00538025]
[1763044032776,0.78965728,102500.0,102490.0,0.00538025]
[1763044032983,1.03493909,102500.0,102490.0,0.00538025]
[1763044036391,0.19516003,102480.0,102470.0,0.02602024]
[1763044036604,0.1951584,102490.0,102470.0,0.05988024]
[1763044036843,0.25679656,102490.0,102480.0,0.00538025]
[1763044037683,0.99264199,102490.0,102480.0,0.00538025]
[1763044038498,0.19516003,102480.0,102470.0,0.02499025]
[1763044038714,0.97332546,102480.0,102470.0,0.002]
[1763044038939,0.72804365,102480.0,102470.0,0.00538025]
[1763044039365,0.19517907,102470.0,102460.0,0.06112686]
[1763044039576,0.44046088,102470.0,102460.0,0.06112686]
[1763044039808,0.44046088,102470.0,102460.0,0.08455686]
[1763044039995,0.44046088,102470.0,102460.0,0.05069686]
[1763044040652,0.68574269,102470.0,102460.0,0.02423687]
[1763044040874,0.68574269,102470.0,102460.0,0.02823687]
[1763044041092,0.19517907,102470.0,102460.0,0.03123687]
[1763044041340,0.68574269,102470.0,102460.0,0.03123687]
[1763044041826,0.68574269,102470.0,102460.0,0.02823687]
[1763044042041,0.68574269,102470.0,102460.0,0.02423687]
[1763044042457,0.68574269,102470.0,102460.0,0.02723687]
[1763044042889,0.68574269,102470.0,102460.0,0.02423687]
[1763044043057,0.4616211,102470.0,102460.0,0.02423687]
[1763044043259,0.65680017,102470.0,102460.0,0.02623687]
[1763044043458,0.65680017,102470.0,102460.0,0.00751687]
[1763044043663,0.65680017,102470.0,102460.0,0.00851687]
[1763044044248,0.19517907,102470.0,102460.0,0.27930499]
[1763044044454,1.05104365,102480.0,102470.0,0.19517907]
[1763044044812,0.23748003,102480.0,102470.0,0.27614932]
[1763044045031,0.54498117,102490.0,102480.0,0.20054028]
[1763044045247,0.83258298,102490.0,102480.0,0.27613028]
[1763044045474,0.79026298,102490.0,102480.0,0.27613028]
[1763044045690,0.78048852,102490.0,102480.0,0.27613028]
[1763044045923,0.78048852,102490.0,102480.0,0.08097025]
[1763044046151,1.27105214,102490.0,102480.0,0.00538025]
[1763044046366,1.02577033,102490.0,102470.0,0.26420931]
[1763044046587,0.58634754,102490.0,102480.0,0.27613028]
[1763044046819,0.78148852,102490.0,102480.0,0.27613028]
[1763044047240,0.78248852,102490.0,102480.0,0.27613028]
[1763044047453,1.02777033,102490.0,102480.0,0.08097025]
[1763044048142,1.02677033,102490.0,102480.0,0.08097025]
[1763044048350,1.02677033,102490.0,102480.0,0.27613028]
[1763044048351,0.53720671,102490.0,102480.0,0.27613028]
[1763044048552,0.78248852,102490.0,102480.0,0.27613028]
[1763044048998,0.86424984,102490.0,102480.0,0.27613028]
[1763044049234,0.86424984,102490.0,102480.0,0.08097025]
[1763044049474,0.86324984,102490.0,102480.0,0.27613028]
[1763044049682,0.86424984,102490.0,102480.0,0.27613028]
[1763044049889,0.89355388,102490.0,102480.0,0.27613028]
[1763044050097,0.89255388,102490.0,102480.0,0.27613028]
[1763044050618,0.89255388,102490.0,102480.0,0.08097025]
[1763044050817,0.89255388,102490.0,102480.0,0.27613028]
[1763044051025,0.89155388,102490.0,102480.0,0.27613028]
[1763044051638,0.89155388,102490.0,102480.0,0.08097025]
[1763044052260,0.89155388,102490.0,102480.0,0.02368025]
[1763044052483,0.19516003,102480.0,102460.0,0.05767661]
[1763044052693,0.5222222,102470.0,102460.0,0.30057498]
[1763044053104,0.5222222,102470.0,102460.0,0.32483498]
[1763044053589,0.5222222,102470.0,102460.0,0.28251498]
[1763044053809,0.5222222,102470.0,102460.0,0.32483498]
[1763044054009,0.5222222,102470.0,102460.0,0.32783498]
[1763044054230,0.19517907,102470.0,102460.0,0.32783498]
[1763044054425,0.19517907,102470.0,102460.0,0.38294612]
[1763044055033,0.19517907,102470.0,102460.0,0.38594612]
[1763044055390,0.19517907,102470.0,102460.0,0.190748]
[1763044055590,0.19517907,102470.0,102460.0,0.09031686]
[1763044055838,0.5222222,102470.0,102460.0,0.09739687]
[1763044056035,0.19517907,102470.0,102460.0,0.05810686]
[1763044056239,0.58978544,102480.0,102470.0,0.20055932]
[1763044056433,0.59382857,102480.0,102470.0,0.27971932]
[1763044057070,0.59382857,102480.0,102470.0,0.08454025]
[1763044057414,0.59382857,102480.0,102470.0,0.27971932]
[1763044057576,0.59382857,102480.0,102470.0,0.28071932]
[1763044057775,0.59382857,102480.0,102470.0,0.08554025]
[1763044058140,0.59382857,102480.0,102470.0,0.05133025]
[1763044059371,0.26678544,102480.0,102470.0,0.27692974]
[1763044059579,0.39866854,102480.0,102470.0,0.31313974]
[1763044060189,0.55150857,102480.0,102470.0,0.08754025]
[1763044060402,1.26321275,102480.0,102470.0,0.003]
[1763044061273,0.19517907,102470.0,102460.0,0.00551687]
[1763044061482,0.5645422,102470.0,102460.0,0.00551687]
[1763044062528,0.26680798,102470.0,102460.0,0.02620687]
[1763044062739,0.59385111,102470.0,102460.0,0.07836324]
[1763044063035,0.59385111,102470.0,102460.0,0.05046687]
[1763044063507,0.59385111,102470.0,102460.0,0.02620687]
[1763044063937,0.59385111,102470.0,102460.0,0.00751687]
[1763044064366,0.59385111,102470.0,102460.0,0.00313662]
[1763044064596,0.7096573,102470.0,102460.0,0.00851687]
[1763044065889,0.69141684,102470.0,102460.0,0.00851687]
[1763044066279,0.70965126,102470.0,102460.0,0.00851687]
[1763044066482,0.69141684,102470.0,102460.0,0.00851687]
[1763044068533,0.69141684,102470.0,102460.0,0.05146687]
[1763044068986,0.69141684,102470.0,102460.0,0.00851687]
[1763044070107,0.02930891,102470.0,102460.0,0.32822498]
[1763044070327,0.19516003,102480.0,102470.0,0.00538025]
[1763044070546,0.5515086,102480.0,102470.0,0.06028025]
[1763044070757,0.5515086,102480.0,102470.0,0.04833025]
[1763044071012,0.22446547,102480.0,102470.0,0.27971932]
[1763044071214,0.19517907,102470.0,102460.0,0.00851687]
[1763044071428,0.19517907,102470.0,102460.0,0.00113662]
[1763044071429,0.62215263,102470.0,102460.0,0.00113662]
[1763044071641,0.93096094,102470.0,102460.0,0.00551687]
[1763044071858,0.93508346,102470.0,102460.0,0.00551687]
[1763044072073,0.93508342,102470.0,102460.0,0.00551687]
[1763044072487,0.91685191,102470.0,102460.0,0.00551687]
[1763044073499,0.91685191,102470.0,102460.0,0.00751687]
[1763044073930,0.91685191,102470.0,102460.0,0.00851687]
[1763044074957,0.96027065,102470.0,102460.0,0.00851687]
[1763044075099,0.97849458,102470.0,102460.0,0.00851687]
[1763044075560,1.07606031,102470.0,102460.0,0.00851687]
[1763044076514,1.07606031,102470.0,102460.0,0.02720687]
[1763044078402,0.68737451,102470.0,102460.0,0.05146687]
[1763044078607,1.01441764,102470.0,102460.0,0.08767687]
[1763044078992,0.68737451,102470.0,102460.0,0.1181381]
[1763044079201,1.01441764,102470.0,102460.0,0.0819281]
[1763044079876,1.01441764,102470.0,102460.0,0.04608662]
[1763044080007,1.01441764,102470.0,102460.0,0.05146687]
[1763044080203,0.77691857,102470.0,102460.0,0.24666499]
[1763044080581,0.22137148,102500.0,102470.0,0.20055932]
[1763044080812,0.52218553,102490.0,102480.0,0.00841024]
[1763044080989,0.63798831,102490.0,102470.0,0.06749024]
[1763044081238,0.52220316,102480.0,102470.0,0.26266931]
[1763044081456,0.68733288,102490.0,102480.0,0.00538025]
[1763044081671,0.19516003,102480.0,102470.0,0.12291024]
[1763044082306,0.02930475,102490.0,102480.0,0.00841024]
[1763044082532,0.52218411,102490.0,102480.0,0.04462025]
[1763044082751,0.52218411,102490.0,102480.0,0.00538025]
[1763044082963,0.54043387,102490.0,102480.0,0.00538025]
[1763044083146,0.54043387,102490.0,102480.0,0.00638025]
[1763044083595,0.54043032,102490.0,102480.0,0.20154028]
[1763044083815,0.52218411,102490.0,102480.0,0.21830028]
[1763044084030,0.52218411,102490.0,102480.0,0.02314025]
[1763044084242,0.19514098,102490.0,102480.0,0.02414025]
[1763044084481,0.19514098,102490.0,102480.0,0.21930028]
[1763044084701,0.52218411,102490.0,102480.0,0.21930028]
[1763044084944,0.52218411,102490.0,102480.0,0.02414025]
[1763044085389,0.98178835,102500.0,102480.0,0.24158028]
[1763044085610,0.32704313,102490.0,102480.0,0.30621706]
[1763044085845,0.70220709,102500.0,102490.0,0.23481098]
[1763044086072,0.57423838,102510.0,102500.0,0.00538025]
[1763044086306,0.98820274,102510.0,102500.0,0.2005022]
[1763044086521,0.66520274,102510.0,102500.0,0.00538025]
[1763044086741,0.98820274,102510.0,102500.0,0.00538025]
[1763044087392,0.99020274,102510.0,102500.0,0.00538025]
[1763044087877,0.19512195,102500.0,102490.0,0.26023065]
[1763044088099,0.52216508,102500.0,102490.0,0.26036727]
[1763044088314,0.52216508,102500.0,102490.0,0.12070687]
[1763044088748,0.52216508,102500.0,102490.0,0.35353302]
[1763044089010,0.32704313,102500.0,102490.0,0.35353302]
[1763044089420,0.19612195,102500.0,102490.0,0.10331687]
[1763044089640,0.32904313,102500.0,102490.0,0.29845785]
[1763044090078,0.52416508,102500.0,102490.0,0.29845785]
[1763044090985,0.85120821,102500.0,102490.0,0.00013662]
[1763044091218,0.85120821,102500.0,102490.0,0.00551687]
[1763044091444,0.85120821,102500.0,102490.0,0.20065785]
[1763044091656,0.52416508,102500.0,102490.0,0.27205055]
[1763044091893,0.52416508,102500.0,102490.0,0.25613785]
[1763044092304,0.32904313,102500.0,102490.0,0.25613785]
[1763044092525,0.52416508,102500.0,102490.0,0.25613785]
[1763044093019,0.002,102500.0,102490.0,0.25613785]
[1763044093449,0.002,102500.0,102490.0,0.34321285]
[1763044093662,0.002,102500.0,102490.0,0.67025598]
[1763044093867,0.002,102500.0,102490.0,0.34321285]
[1763044094542,0.002,102500.0,102490.0,0.67025598]
[1763044094964,0.001,102500.0,102490.0,0.67025598]
[1763044095403,0.94356381,102520.0,102500.0,0.19510305]
[1763044095615,1.30998255,102520.0,102510.0,0.03967]
[1763044096463,1.30998255,102520.0,102510.0,0.23477291]
[1763044096701,1.31098255,102520.0,102510.0,0.07287]
[1763044096929,1.31198255,102520.0,102510.0,0.26797291]
[1763044097136,1.31194255,102520.0,102510.0,0.07287]
[1763044097528,0.98489942,102520.0,102510.0,0.07287]
[1763044097707,1.31194255,102520.0,102510.0,0.07287]
[1763044097905,1.31094255,102520.0,102510.0,0.07287]
[1763044098105,1.63798568,102520.0,102510.0,0.03967]
[1763044098335,1.63898568,102520.0,102510.0,0.04505025]
[1763044098648,1.31194255,102520.0,102510.0,0.04505025]
[1763044098850,1.31194255,102520.0,102510.0,0.24015316]
[1763044099360,0.73664261,102520.0,102510.0,0.3247356]
[1763044099563,0.34206573,102520.0,102510.0,0.32776559]
[1763044099783,0.2445,102520.0,102510.0,0.32776559]
[1763044099998,0.76662701,102520.0,102510.0,0.32776559]
[1763044100206,0.43858388,102520.0,102510.0,0.27638315]
[1763044100431,0.2445,102520.0,102510.0,0.27638315]
[1763044100683,0.43958388,102520.0,102510.0,0.27638315]
[1763044100895,0.2445,102520.0,102510.0,0.27638315]
[1763044101108,0.2435,102520.0,102510.0,0.27638315]
[1763044101329,0.2445,102520.0,102510.0,0.27638315]
[1763044101752,0.57154313,102520.0,102510.0,0.27638315]
[1763044101964,0.76662701,102520.0,102510.0,0.08128024]
[1763044103183,0.76662701,102520.0,102510.0,0.27638315]
[1763044103421,0.76662701,102520.0,102510.0,0.13440171]
[1763044103630,0.76662701,102520.0,102510.0,0.04808024]
[1763044103848,0.19510291,102510.0,102500.0,0.05361999]
[1763044104058,0.52214604,102510.0,102500.0,0.29640219]
[1763044104298,0.52214604,102510.0,102500.0,0.27640219]
[1763044104517,0.52214604,102510.0,102490.0,0.26335784]
[1763044104518,0.19512195,102500.0,102490.0,0.26335784]
[1763044104725,0.84920821,102500.0,102490.0,0.21569759]
[1763044104924,0.52216508,102500.0,102490.0,0.28025759]
[1763044105351,0.23738291,102510.0,102500.0,0.00538025]
[1763044105569,0.56442604,102510.0,102500.0,0.00538025]
[1763044105776,0.19512195,102500.0,102490.0,0.09903661]
[1763044105961,0.52216508,102500.0,102490.0,0.10003661]
[1763044106116,0.52216508,102500.0,102490.0,0.12769686]
[1763044106317,0.52216508,102500.0,102490.0,0.12331661]
[1763044106729,0.52216508,102500.0,102490.0,0.09549686]
[1763044106979,0.84920821,102500.0,102490.0,0.02790687]
[1763044107180,0.84920821,102500.0,102490.0,0.01051687]
[1763044107376,0.84920821,102500.0,102490.0,0.00651687]
[1763044107784,0.84920821,102500.0,102490.0,0.00113662]
[1763044107986,0.99019268,102500.0,102490.0,0.00113662]
[1763044108344,1.00840865,102500.0,102490.0,0.00113662]
[1763044108645,1.00840865,102500.0,102490.0,0.00751687]
[1763044108849,1.00840865,102500.0,102490.0,0.00213662]
[1763044109012,1.00840865,102500.0,102490.0,0.00751687]
[1763044109214,1.00840865,102500.0,102490.0,0.00113662]
[1763044109632,1.00840865,102500.0,102490.0,0.00013662]
[1763044110158,1.00940865,102500.0,102490.0,0.00013662]
[1763044110677,1.33340865,102500.0,102490.0,0.00013662]
[1763044111082,2.15124911,102500.0,102490.0,0.00013662]
[1763044111705,0.67932239,102500.0,102490.0,0.00013662]
[1763044111959,1.41528575,102500.0,102490.0,0.01662662]
[1763044112368,1.16996463,102500.0,102490.0,0.01662662]
[1763044112586,1.16996463,102500.0,102490.0,0.02200687]
[1763044112798,1.41528575,102500.0,102490.0,0.02200687]
[1763044113241,1.41528575,102500.0,102490.0,0.00551687]
[1763044114572,1.41528575,102500.0,102490.0,0.20065785]
[1763044114786,1.41528575,102500.0,102490.0,0.00013662]
[1763044115011,1.41528575,102500.0,102490.0,0.00551687]
[1763044116001,1.16996463,102500.0,102490.0,0.1952776]
[1763044116202,1.16996463,102500.0,102490.0,0.20065785]
[1763044117045,1.16996463,102500.0,102490.0,0.00551687]
[1763044117386,2.15124911,102500.0,102490.0,0.00013662]
[1763044117588,1.41528575,102500.0,102490.0,0.00013662]
[1763044118344,2.15124911,102500.0,102490.0,0.00013662]
[1763044118962,2.1722327,102500.0,102490.0,0.00013662]
[1763044119168,2.18133817,102500.0,102490.0,0.00013662]
[1763044120277,2.21064553,102500.0,102490.0,0.00013662]
[1763044120492,2.21761553,102500.0,102490.0,0.00013662]
[1763044120708,2.24388493,102500.0,102490.0,0.00013662]
[1763044120914,0.19519812,102460.0,102450.0,0.01951999]
[1763044121121,0.68584036,102460.0,102450.0,0.01966001]
[1763044121340,0.68584036,102460.0,102450.0,0.02504026]
[1763044121972,0.68584036,102460.0,102450.0,0.02201027]
[1763044122233,0.68584036,102460.0,102450.0,0.00014002]
[1763044122444,0.93116148,102460.0,102450.0,0.00114002]
[1763044122893,1.1764826,102460.0,102450.0,0.00114002]
[1763044123103,2.03354358,102460.0,102450.0,0.00114002]
[1763044123323,2.03354358,102460.0,102450.0,0.00852027]
[1763044123324,1.29758022,102460.0,102450.0,0.00852027]
[1763044123778,1.29758022,102460.0,102450.0,0.00314002]
[1763044123997,1.29758022,102460.0,102450.0,0.00852027]
[1763044124212,1.0522591,102460.0,102450.0,0.20373744]
[1763044124426,0.14098447,102470.0,102460.0,0.20057837]
[1763044124633,1.19208578,102470.0,102460.0,0.27237837]
[1763044124844,0.70816685,102470.0,102460.0,0.27237837]
[1763044125062,0.13984573,102470.0,102460.0,0.27237837]
[1763044125291,0.3350248,102470.0,102460.0,0.27237837]
[1763044125511,0.2927448,102470.0,102460.0,0.32558885]
[1763044125659,0.09756573,102470.0,102460.0,0.32558885]
[1763044126938,0.2927448,102470.0,102460.0,0.07718025]
[1763044127098,0.2927448,102470.0,102460.0,0.27237837]
[1763044127303,0.5715813,102470.0,102460.0,0.02187025]
[1763044127517,0.19519812,102460.0,102450.0,0.25297743]
[1763044127723,0.5715813,102470.0,102460.0,0.00538025]
[1763044127922,0.5715813,102470.0,102460.0,0.20057837]
[1763044128393,0.5715813,102470.0,102460.0,0.23965837]
[1763044128520,0.5715813,102470.0,102460.0,0.04446025]
[1763044128738,0.5715813,102470.0,102460.0,0.23965837]
[1763044129474,0.5715813,102470.0,102460.0,0.04446025]
[1763044129685,0.5715813,102470.0,102460.0,0.23965837]
[1763044129871,0.5715813,102470.0,102460.0,0.04446025]
[1763044130132,0.5715813,102470.0,102460.0,0.23965837]
[1763044130898,0.34479713,102480.0,102460.0,0.28894177]
[1763044131124,1.00821823,102480.0,102470.0,0.00538025]
[1763044132225,1.00921823,102480.0,102470.0,0.00538025]
[1763044132411,1.28905473,102480.0,102470.0,0.00538025]
[1763044132569,1.28805473,102480.0,102470.0,0.00538025]
[1763044132787,1.09186133,102480.0,102470.0,0.00538025]
[1763044132991,1.28703868,102480.0,102470.0,0.00538025]
[1763044133196,1.28803868,102480.0,102470.0,0.00538025]
[1763044133854,1.28903868,102480.0,102470.0,0.00538025]
[1763044134260,1.28903868,102480.0,102470.0,0.23963932]
[1763044134481,1.00042686,102480.0,102470.0,0.28804406]
[1763044134696,0.95700812,102480.0,102470.0,0.04446025]
[1763044135115,0.95700812,102480.0,102470.0,0.23963932]
[1763044135514,0.95500812,102480.0,102470.0,0.23963932]
[1763044135859,0.95500812,102480.0,102470.0,0.27235932]
[1763044136295,0.61384226,102480.0,102470.0,0.27235932]
[1763044136704,0.33500576,102480.0,102470.0,0.27235932]
[1763044136918,0.33600576,102480.0,102470.0,0.27235932]
[1763044137761,0.09856573,102480.0,102470.0,0.32529906]
[1763044137968,0.001,102480.0,102470.0,0.32832905]
[1763044138176,0.001,102480.0,102470.0,0.60716555]
[1763044138676,0.001,102480.0,102470.0,0.32832905]
[1763044138895,0.001,102480.0,102470.0,0.60716555]
[1763044139320,0.001,102480.0,102470.0,0.93016555]
[1763044139739,0.001,102480.0,102470.0,1.21300205]
[1763044139955,0.29264961,102520.0,102510.0,0.20048316]
[1763044140161,0.57148611,102520.0,102510.0,0.24036316]
[1763044140377,0.57148611,102520.0,102510.0,0.07286]
[1763044140578,0.9127001,102520.0,102510.0,0.07824025]
[1763044140790,0.19510291,102510.0,102500.0,0.00538025]
[1763044141080,0.19510291,102510.0,102490.0,0.06269999]
[1763044141081,0.19512195,102500.0,102490.0,0.06269999]
[1763044141276,0.47395845,102500.0,102490.0,0.06269999]
[1763044141482,0.47395845,102500.0,102490.0,0.06808024]
[1763044141941,0.47395845,102500.0,102490.0,0.12290704]
[1763044142178,0.47395845,102500.0,102490.0,0.08518999]
[1763044142438,0.47395845,102500.0,102490.0,0.00538025]
[1763044142876,0.19514098,102490.0,102480.0,0.29622027]
[1763044143112,0.47395845,102500.0,102480.0,0.29622027]
[1763044143330,0.47395845,102500.0,102490.0,0.03988]
[1763044143551,0.47395845,102500.0,102490.0,0.07924025]
[1763044143766,0.47395845,102500.0,102490.0,0.04726025]
[1763044144453,0.19521717,102450.0,102440.0,0.06965997]
[1763044144665,0.19523623,102440.0,102430.0,0.0004]
[1763044144889,0.82952565,102440.0,102430.0,0.0004]
[1763044145075,0.82952565,102440.0,102400.0,0.01779]
[1763044145076,0.32225524,102410.0,102400.0,0.01779]
[1763044145330,0.79638516,102410.0,102400.0,0.01779]
[1763044145549,0.51754866,102410.0,102400.0,0.01779]
[1763044145762,0.58978933,102410.0,102400.0,0.01825684]
[1763044145985,0.31095283,102410.0,102400.0,0.01825684]
[1763044146220,0.58978933,102410.0,102400.0,0.01825684]
[1763044146864,0.58978933,102410.0,102400.0,0.02225684]
[1763044147318,0.54637059,102410.0,102400.0,0.04741684]
[1763044148393,0.47412992,102410.0,102400.0,0.04741684]
[1763044148611,0.47412992,102410.0,102400.0,0.24272934]
[1763044148836,0.47412992,102410.0,102400.0,0.04741684]
[1763044149020,0.54704423,102410.0,102400.0,0.04741684]
[1763044149282,0.26820773,102410.0,102400.0,0.04741684]
[1763044149502,0.56205651,102410.0,102400.0,0.04741684]
[1763044149722,0.4891422,102410.0,102400.0,0.04741684]
[1763044150405,0.47412992,102410.0,102400.0,0.04741684]
[1763044151010,0.47412992,102410.0,102400.0,0.24272934]
[1763044151224,0.47412992,102410.0,102400.0,0.08097684]
[1763044151428,0.47412992,102410.0,102400.0,0.27628934]
[1763044151864,0.3132127,102420.0,102410.0,0.19529342]
[1763044152078,0.80688741,102430.0,102410.0,0.26714342]
[1763044152301,0.21337818,102430.0,102420.0,0.25099436]
[1763044152520,0.47409179,102430.0,102420.0,0.25099436]
[1763044153993,0.47509179,102430.0,102420.0,0.25099436]
[1763044154615,0.2798365,102430.0,102420.0,0.25099436]
[1763044154971,0.2808365,102430.0,102420.0,0.25099436]
[1763044155184,0.47609179,102430.0,102420.0,0.25099436]
[1763044155410,0.47609179,102430.0,102420.0,0.30221092]
[1763044155701,0.002,102430.0,102420.0,0.30221092]
[1763044156604,0.001,102430.0,102420.0,0.25099436]
[1763044156817,0.91446475,102450.0,102440.0,0.19523623]
[1763044157017,0.19523623,102440.0,102430.0,0.04969]
[1763044157224,0.75290923,102440.0,102430.0,0.01613]
[1763044157589,0.47407273,102440.0,102430.0,0.26710529]
[1763044157802,0.47407273,102440.0,102430.0,0.07185]
[1763044158011,0.47411927,102440.0,102430.0,0.07185]
[1763044159243,0.47611927,102440.0,102430.0,0.07185]
[1763044159450,0.47611927,102440.0,102430.0,0.03829]
[1763044160233,0.47611927,102440.0,102430.0,0.27820892]
[1763044160664,0.28088304,102440.0,102430.0,0.27820892]
[1763044160867,0.28088304,102440.0,102430.0,0.26710529]
[1763044161848,0.00204654,102440.0,102430.0,0.26710529]
[1763044162267,0.28088304,102440.0,102430.0,0.26710529]
[1763044162469,0.27988304,102440.0,102430.0,0.26710529]
[1763044162689,0.27888304,102440.0,102430.0,0.26710529]
[1763044162899,0.27888304,102440.0,102430.0,0.31934321]
[1763044163546,4.654e-05,102440.0,102430.0,0.31934321]
[1763044164831,4.654e-05,102440.0,102430.0,0.27310529]
[1763044166769,0.19528277,102440.0,102430.0,0.27310529]
[1763044167399,4.654e-05,102440.0,102430.0,0.27310529]
[1763044167851,0.19528277,102440.0,102430.0,0.27310529]
[1763044168059,4.654e-05,102440.0,102430.0,0.27310529]
[1763044168266,0.19528277,102440.0,102430.0,0.27310529]
[1763044168447,4.654e-05,102440.0,102430.0,0.27310529]
[1763044168818,0.19528277,102440.0,102430.0,0.27310529]
[1763044169229,0.47411927,102440.0,102430.0,0.27310529]
[1763044169432,0.75295577,102440.0,102430.0,0.04429]
[1763044169644,0.79637451,102440.0,102430.0,0.006]
[1763044170401,0.79637451,102440.0,102430.0,0.003]
[1763044170604,0.51753801,102440.0,102430.0,0.003]
[1763044170816,0.51753801,102440.0,102430.0,0.004]
[1763044170955,0.79637451,102440.0,102430.0,0.004]
[1763044171371,0.47411927,102440.0,102430.0,0.27157529]
[1763044171582,0.27888304,102440.0,102430.0,0.27157529]
[1763044172137,0.29703337,102440.0,102430.0,0.27257529]
[1763044172560,0.01819687,102440.0,102430.0,0.27257529]
[1763044172771,0.27888304,102440.0,102430.0,0.27257529]
[1763044172976,4.654e-05,102440.0,102430.0,0.27257529]
[1763044173756,4.654e-05,102440.0,102430.0,0.31936014]
[1763044174170,4.654e-05,102440.0,102430.0,0.78704691]
[1763044178337,4.654e-05,102440.0,102430.0,1.11004691]
[1763044179408,4.654e-05,102440.0,102430.0,1.10904691]
[1763044179621,4.654e-05,102440.0,102430.0,1.11204691]
[1763044180042,4.654e-05,102440.0,102430.0,1.11604691]
[1763044181979,4.654e-05,102440.0,102430.0,1.13604691]
[1763044182201,4.654e-05,102440.0,102430.0,1.11604691]
[1763044182620,0.66286615,102470.0,102460.0,0.21779812]
[1763044182826,0.68113471,102470.0,102460.0,0.25909791]
[1763044183087,0.68113471,102470.0,102460.0,0.29513791]
[1763044183839,0.68313471,102470.0,102460.0,0.29513791]
[1763044184351,0.48795564,102470.0,102460.0,0.29513791]
[1763044184541,0.68313471,102470.0,102460.0,0.29513791]
[1763044185602,0.68313471,102470.0,102460.0,0.25383812]
[1763044186298,0.68313471,102470.0,102460.0,0.05864]
[1763044186512,0.68312367,102470.0,102460.0,0.05864]
[1763044188171,0.68312367,102470.0,102460.0,0.27051812]
[1763044190280,0.68312367,102470.0,102460.0,0.07532]
[1763044190595,0.68312367,102470.0,102460.0,0.27051812]
[1763044191585,0.2154369,102470.0,102460.0,0.27051812]
[1763044191797,0.68312367,102470.0,102460.0,0.27051812]
[1763044193796,0.4879446,102470.0,102460.0,0.27051812]
[1763044193997,0.68312367,102470.0,102460.0,0.27051812]
[1763044194239,0.02025783,102470.0,102460.0,0.27051812]
[1763044194468,0.00204664,102470.0,102460.0,0.78644641]